Cogmind - Beta 13 @@@ ROGUE MODE // 2024.04.07 @ 15:46:13 Player: aperiodic Result: Destroyed by G-34 Mercenary with Small Laser Performance ------------- Evolutions (0) 0 Regions Visited (2) 400 Robots Destroyed (20) 100 Value Destroyed (452) 452 Prototype IDs (4) 80 Alien Tech Used (0) 0 Bonus (0) 0 TOTAL SCORE: 1032 Bonus ------- None Cogmind --------- Core Integrity 0/250 Matter 284/300 Energy 125/125 System Corruption 0% Temperature Cool (6) Movement Rolling (100) Location -10/Mines Parts ------- > --- POWER (1) -------- Light Ion Engine > --- PROPULSION (2) --- Compact Wheel Compact Wheel > --- UTILITY (2) ------ Improved Heat Sink Small Storage Unit > --- WEAPON (2) ------- Light Assault Rifle > --- INVENTORY (8) ---- Armored Treads Improved Sensor Array Heavy Armor Plating Shock Bomb Launcher Grenade Launcher Mining Laser Stasis Trap (100%) Peak State ------------ > --- POWER ------------ Light Ion Engine > --- PROPULSION ------- Wheel Compact Wheel > --- UTILITY ---------- Improved Heat Sink Small Storage Unit > --- WEAPON ----------- Particle Gun Shock Bomb Launcher > --- INVENTORY -------- Armored Treads Compact Wheel Improved Sensor Array Heavy Armor Plating Light Assault Rifle Grenade Launcher Mining Laser [Rating: 13] Favorites ----------- Power Light Nuclear Core Engine Ion Engine Power Core Light Nuclear Core Propulsion Compact Wheel Treads Light Treads Wheel Compact Wheel Utility Small Storage Unit Device Improved Heat Sink Storage Small Storage Unit Weapon Light Assault Rifle Energy Gun Particle Gun Ballistic Gun Light Assault Rifle Launcher Grenade Launcher Special Weapon Mining Laser Build | -11 -10 -10 ------- Run | Yrd Mat Min Slots Evolved . | . . . Power . | . . . Propulsion . | . . . Utility . | . . . Weapon . | . . . Parts Attached 34 | 7 12 15 Power 4 | 1 1 2 Engine 3 | 1 . 2 Core 1 | . 1 . Reactor . | . . . Propulsion 12 | 2 4 6 Treads 3 | . 2 1 Leg . | . . . Wheel 9 | 2 2 5 Hover . | . . . Flight . | . . . Utility 4 | 2 . 2 Device 3 | 1 . 2 Storage 1 | 1 . . Processor . | . . . Hackware . | . . . Protection . | . . . Artifact . | . . . Weapon 14 | 2 7 5 Energy Gun 7 | 1 5 1 Energy Cannon . | . . . Ballistic Gun 3 | 1 . 2 Ballistic Cannon . | . . . Launcher 3 | . 1 2 Special Weapon 1 | . 1 . Impact Weapon . | . . . Slashing Weapon . | . . . Piercing Weapon . | . . . Special Melee Weapon . | . . . Unidentified Prototypes . | . . . Parts Lost 9 | . . 9 Power 1 | . . 1 Propulsion 3 | . . 3 Utility 1 | . . 1 Weapon 4 | . . 4 Highest Loss Streak 5 | . . 5 To Critical Strikes . | . . . Average Slot Usage (%) 94 | . 100 89 Engine 5 | . 7 4 Core 5 | . 7 4 Treads 6 | . 9 3 Wheel 20 | . 18 22 Device 14 | . 14 14 Storage 14 | . 14 14 Energy Gun 9 | . 12 7 Ballistic Gun 13 | . 14 13 Launcher 2 | . . 3 Naked Turns . | . . . Heaviest Build 18 | 14 15 18 Greatest Support 40 | 26 40 32 Greatest Overweight (x) . | . . . Average Overweight (x) . | . . . Largest Inventory Capacity 8 | 8 8 8 Average Capacity 7 | 7 8 8 Most Carried 8 | 7 8 8 Average Carried 6 | 4 7 6 Final Capacity 8 | 8 8 8 Final Carried 8 | 6 8 8 Class Distribution -------------------- 100% | Mutant Dominant Class ---------------- Mutant | -10/Materials Mutant | -10/Mines Resources | -11 -10 -10 ----------- Run | Yrd Mat Min Matter Collected 614 | 278 117 219 Remotely . | . . . Salvage Created 630 | 110 214 306 Parts 35 | 6 12 17 Haulers Intercepted . | . . . Recyclers Shooed . | . . . Parts Field Recycled . | . . . Retrieved Matter . | . . . Parts Self-Destructed . | . . . Prevented . | . . . Kills | -11 -10 -10 ------- Run | Yrd Mat Min Combat Hostiles Destroyed 17 | . 7 10 Guns 10 | . 6 4 AOE 7 | . 1 6 Classes Destroyed 5 | 2 2 1 Tunneler 2 | 2 . . Recycler 2 | 1 . 1 Swarmer 6 | . 3 3 Grunt 10 | . 4 6 Assembled 1 | . . 1 Best Kill Streak 6 | 3 3 6 Combat Bots Only 3 | . 3 3 Max Kills in Single Turn 2 | 1 1 2 Gunslinging . | . . . Exploded 2 | . 1 2 Melee . | . . . Uniques/NPCs Destroyed . | . . . Combat | -11 -10 -10 -------- Run | Yrd Mat Min Hostile Shots Fired 104 | . 22 82 Missed 19 | . 3 16 Damage Taken 1024 | . 212 812 Core 261 | . 31 230 Absorbed by Shields . | . . . Core Remaining (%) 100 | 100 . . Volleys Fired 84 | 8 25 51 Largest 2 | 2 2 2 Hottest 100 | 70 100 85 Shots Fired 126 | 16 36 74 Gun 116 | 16 32 68 Cannon . | . . . Launcher 7 | . 1 6 Special 3 | . 3 . Kinetic 75 | 8 12 55 Thermal 35 | 8 14 13 Explosive 4 | . 1 3 Electromagnetic 12 | . 9 3 Robot Hit Streak 11 | 5 4 11 Robot Miss Streak 7 | 2 2 7 Penetration Max . | . . . Secondary Targets . | . . . Shots Hit Robots 71 | 11 18 42 Core Hits 38 | 4 13 21 Critical Kills . | . . . Critical Parts Destroyed . | . . . Critical Strikes 2 | 1 1 . Burn 1 | 1 . . Corrupt 1 | . 1 . Melee Attacks . | . . . Impact . | . . . Slashing . | . . . Piercing . | . . . Sneak Attacks . | . . . Combat Hostiles . | . . . Follow-up Attacks . | . . . Damage Inflicted 1141 | 131 309 701 Guns 756 | 131 243 382 Cannons . | . . . Explosions 385 | . 66 319 Melee . | . . . Ramming . | . . . Kinetic 368 | 44 37 287 Thermal 305 | 87 123 95 Explosive 301 | . 66 235 Electromagnetic 167 | . 83 84 Impact . | . . . Slashing . | . . . Piercing . | . . . Highest Corruption . | . . . Average Corruption . | . . . Corruption Purged . | . . . Corruption Blocked . | . . . Overload Shots . | . . . Overflow Damage 21 | . . 21 Projectiles . | . . . Explosions 21 | . . 21 Melee . | . . . Knockbacks . | . . . Impact . | . . . Kinetic . | . . . Secondary . | . . . Self-Inflicted Damage 59 | . . 59 Shots 2 | . . 2 Rammed . | . . . Targets Rammed . | . . . Kicked . | . . . Crushed . | . . . Highest Temperature 209 | 80 186 209 Average Temperature 78 | 33 56 148 Received Heat Transfer 444 | . 81 363 Siege Activations . | . . . Robots Corrupted . | . . . Combat Hostiles . | . . . Parts Fried 1 | . 1 . Impact Corruptions . | . . . Robots Melted . | . . . Combat Hostiles . | . . . Parts Melted 3 | 3 . . Heat Transferred 851 | 333 296 222 Parts Sabotaged . | . . . Parts Stolen . | . . . Parts Stripped . | . . . Power Chain Reactions . | . . . Alert | -11 -10 -10 ------- Run | Yrd Mat Min Peak Influence 210 | 15 210 149 Initial 15 | . 9 15 Average 57 | 5 98 36 Maximum Alert Level 1 | . 1 . Low Security (%) 88 | 100 70 100 Level 1 11 | . 29 . Level 2 . | . . . Level 3 . | . . . Level 4 . | . . . Level 5 . | . . . High Security . | . . . Max Security . | . . . Squads Dispatched 2 | . 1 1 Investigation 1 | . . 1 Extermination . | . . . Reinforcement 1 | . 1 . Assault . | . . . Garrison . | . . . Intercept . | . . . Searches Triggered . | . . . Construction Impeded . | . . . Haulers Reinforced . | . . . Active Scanning Responses . | . . . Cargo Convoy Interrupts . | . . . Stealth | -11 -10 -10 --------- Run | Yrd Mat Min Distress Signals 1 | . . 1 Communications Jammed . | . . . Distress Signals . | . . . Times Spotted 25 | . 10 15 Peak Tracking Total 3 | . 3 3 Tactical Retreats 2 | . . 2 Traps | -11 -10 -10 ------- Run | Yrd Mat Min Traps Triggered . | . . . Indirectly . | . . . Trap Hack Attempts . | . . . Triggered . | . . . Disarmed . | . . . Reprogrammed . | . . . Reused . | . . . Traps Extracted . | . . . Installed . | . . . Triggered . | . . . Most Traps Carried 1 | . . 1 Machines | -11 -10 -10 ---------- Run | Yrd Mat Min Machines Disabled . | . . . Max in Single Turn . | . . . Machines Repaired . | . . . Machines Dismantled . | . . . Machines Sabotaged . | . . . Overloaded Fab Kills . | . . . Hacking | -11 -10 -10 --------- Run | Yrd Mat Min Machines Accessed 6 | . 5 1 Terminals 5 | . 5 . Fabricators . | . . . Repair Stations . | . . . Recycling Units . | . . . Scanalyzers . | . . . Garrison Access . | . . . Total Hacks 17 | . 16 1 Successful 9 | . 8 1 Failed 7 | . 7 . Catastrophic 2 | . 2 . Database Lockouts 1 | . 1 . Manual 13 | . 13 . Terminals 16 | . 16 . Fabricators . | . . . Repair Stations . | . . . Recycling Units . | . . . Scanalyzers . | . . . Garrison Access . | . . . Terminal Hacks 5 | . 4 1 Robot Analysis 1 | . 1 . Prototype ID Bank 2 | . 2 . Open Door 1 | . . 1 Terminal Index 1 | . 1 . Fabricator Hacks . | . . . Repair Station Hacks . | . . . Recycling Unit Hacks . | . . . Scanalyzer . | . . . Garrison Access Hacks . | . . . Unauthorized Hacks 4 | . 4 . Terminals 4 | . 4 . Track 1 | . 1 . Assimilate 1 | . 1 . Botnet 1 | . 1 . Operators 1 | . 1 . Fabricators . | . . . Repair Stations . | . . . Recycling Units . | . . . Scanalyzers . | . . . Garrison Access . | . . . Data Cores Recovered . | . . . Used . | . . . Hacking Detections 4 | . 4 . Full Trace Events 2 | . 2 . Feedback Events . | . . . Feedback Blocked . | . . . Robot Schematics Acquired . | . . . Robots Built . | . . . Authchips . | . . . Time . | . . . Total Robot Build Rating . | . . . Part Schematics Acquired . | . . . Parts Built . | . . . Authchips . | . . . Time . | . . . Total Part Build Rating . | . . . Parts Repaired . | . . . Time . | . . . Parts Recycled . | . . . Recycled Matter . | . . . Retrieved Matter . | . . . Retrieved Components . | . . . Parts Scanalyzed . | . . . Part Schematics Acquired . | . . . Parts Damaged . | . . . Bothacking | -11 -10 -10 ------------ Run | Yrd Mat Min Used RIF Installer . | . . . Robots Hacked . | . . . Non-combat . | . . . Combat . | . . . Robot Hacks Applied . | . . . Relay Couplers Released . | . . . Fabnet Peak Effective % . | . . . Robots Rewired . | . . . Allies Hacked . | . . . Hacks Repelled . | . . . Allies | -11 -10 -10 -------- Run | Yrd Mat Min Total Allies . | . . . Largest Group . | . . . Highest-Rated Group . | . . . Highest-Rated Ally . | . . . Total Orders . | . . . Ally Attacks . | . . . Total Damage . | . . . Kills . | . . . Allies Corrupted . | . . . Allies Melted . | . . . Intel | -11 -10 -10 ------- Run | Yrd Mat Min Robot Analysis Total 1 | . 1 . Derelict Logs Recovered 2 | . . 2 Drone Launches . | . . . Drone Recoveries . | . . . Exploration | -11 -10 -10 ------------- Run | Yrd Mat Min Turns Passed 1144 | 116 457 571 Spaces Moved 802 | 82 283 437 Core 3 | 3 . . Treads 33 | . 33 . Legs . | . . . Wheels 766 | 79 250 437 Hover . | . . . Flight . | . . . Fastest Speed 50 | 50 90 90 Average Speed 99 | 93 104 98 Slowest Speed 160 | 100 160 100 Overloaded Moves . | . . . Propulsion Burnouts . | . . . Robots Hopped . | . . . Cave-ins Triggered . | . . . Exploration Rate (%) 43 | 5 39 87 Regions Visited 2 Branch Regions 1 Pre-discovered Areas . | . . . Known Exits Taken . | . . . Unknown Exits Taken 2 | 1 1 . Scrap Searched 1 | . . 1 Spaces Dug 11 | . 3 8 Terrain Destroyed 39 | . 15 24 Melee . | . . . Projectile 3 | . 3 . AOE 36 | . 12 24 Terrain Rammed . | . . . Walls Destroyed . | . . . Machines Disabled . | . . . Actions | -11 -10 -10 --------- Run | Yrd Mat Min Total 1017 | 103 400 514 Wait 75 | . 75 . Move 800 | 81 282 437 Hop . | . . . Pick Up 16 | 7 3 6 Fast Attach 10 | 6 1 3 Attach 7 | 1 . 6 Detach 1 | . . 1 Swap 17 | . 11 6 Drop 7 | . 3 4 Fire 84 | 8 25 51 Melee . | . . . Ram . | . . . Kick . | . . . Crush . | . . . Escape Stasis . | . . . Rewire . | . . . Trap . | . . . Miscellaneous . | . . . Route ------- -11/Scrapyard -10/Materials -10/Mines (discovered 1 exit: [*Mat]) History --------- Turn | Location | Event 36 | -11/Scrapyard | Discovered new exit (range 15) 117 | -11/Scrapyard | Entered Materials 158 | -10/Materials | Central database locked down 317 | -10/Materials | Build established: Mutant 471 | -10/Materials | Discovered new exit (range 12) 574 | -10/Materials | Entered Mines 589 | -10/Mines | Excavation squad dispatched 589 | -10/Mines | A large section of the Mines collapsed 642 | -10/Mines | Lost 3 parts (1n1u1w) 737 | -10/Mines | Learned Materials trap positions 767 | -10/Mines | Met a Derelict shopkeep closing up shop 839 | -10/Mines | Excavation squad dispatched 874 | -10/Mines | Core integrity fell below 50% 909 | -10/Mines | Core integrity fell below 20% 938 | -10/Mines | Learned Materials interactive machine intel 947 | -10/Mines | Lost 5 parts (1p2n2w) 990 | -10/Mines | Discovered new exit (range 8) 1116 | -10/Mines | Found a hidden stash of uninstalled traps 1145 | -10/Mines | Destroyed by G-34 Mercenary with Small Laser Last Messages --------------- 00964_ U-05 Engineer builds a Wall. 00972_ U-05 Engineer lays Concrete. 00976_ U-05 Engineer builds a Wall. 00982_ U-05 Engineer lays Concrete. 00990_ EXIT=FOUND 00996_ U-05 Engineer lays Concrete. 01017_ Grenade Launcher destroyed. 01068_ Searching scrap... 01068_ Found Lgt. Ion Engine. 01068_ Found Grenade Launcher. 01068_ Found 14 Matter. 01068_ Found Com. Wheel. 01068_ Found 22 Matter. 01069_ Acquired 2 matter. 01070_ Acquired Lgt. Ion Engine. 01071_ Acquired 10 matter. 01078_ Acquired Grenade Launcher. 01116_ A stash of uninstalled traps is collected here! 01118_ Acquired Stasis Trap. Map ----- +----------------------------------------------------+ | ??## ??## #????????????????????# #?????????????? | | ???# ???## #?####?????????????### #?????????????? | | ???# ????# ### ##????????????# #?????????????? | | ???#?????# ## ##???????????# ###?????????????? | | ?????????# ##??????????# #???????????????? | | ?????????# ## ##?????????# #????????####???? | | ??????? ### #?######### #???????## ##??? | | ??###?#### #?# ## ##?# #???????# ##?? | | ?# ####?# #?# #?###??# #########???????# ##? | | # ? #?# #??????# #???????????????# #? | | #?# #??????# #??????????????## #? | | ??#####?# #??????# #?????????????## #? | | ??????????# ####???# #????????????## #?? | | ??????????????# ## ##??# #???????????## #?? | | ?????????????## && #??# #??????????## #?? | | ?????????????# & ##?# #?????????## #?? | | #???????????## & ### ###??????## #?? | | #?????????### #??????# ## #?? | | #?????# #?????## #### #?? | | #?????# ## ### ####?## #??### #?? | | #?????############# ##?# ### #????# #?? | | #?????????????????## ##??#### ##????# #?? | | #??????????????????# ######?# ###????##=#?? | | #??????????????????# #?##### ##?????## %##? | | #??????????????????#### #g#?????#####??????# % #? | | #?????????????????????# #@####### #???????## #? | | ??????????????????????# # g #???????# #? | | ??????????????????????# ######### #???????# #? | | ??????????????????????# #???????????????? # ##? | | ??????????????????????# #?????????????? #######?? | | ??????????????????????# #???????????? ?????????? | | ??????????????????????# #??????????# ???????????? | | ??????????????????????# ??????????##????????????? | | ???????????????????????##????????????????????????? | | ?????????????????????????????????????????????????? | | ?????????????????????????????????????????????????? | | ?????????????????????????????????????????????????? | | ?????????????????????????????????????????????????? | | ?????????????????????????????????????????????????? | | ?????????????????????????????????????????????????? | | ?????????????????????????????????????????????????? | | ?????????????????????????????????????????????????? | | ?????????????????????????????????????????????????? | | ?????????????????????????????????????????????????? | | ?????????????????????????????????????????????????? | | | | | | | | | | | +----------------------------------------------------+ Best States ------------- Heat Dissipation 39 Energy Generation 14 Energy Capacity 250 Matter Stores 300 Matter Capacity 300 Sight Range 16 Terrain Scan Density 10 Evasion (%) 42 Recoil Reduction 2 Item Schematics ----------------- None Robot Schematics ------------------ None Fabricated ------------ Nothing Alien Tech Used ----------------- None Achievements -------------- None Challenges ------------ None Game ------ Seed MediumTransportDesublimator Manual? 0 Play Time 00:15:18 Cumulative 682.2 hours Start 2024.04.07 @ 15:31:10 End 2024.04.07 @ 15:46:13 Sessions 1 Manual Loads 0 Difficulty Rogue Special Mode None Game No. 225 Rogue 221 Adventurer 4 Explorer 0 Win Type - Total 21 Types 9/2/6/0/0/0/2/2/0 Lore% 82 Gallery% 86 Achievement% 78 Wizard Run 0 Options --------- Layout 1 ASCII 1 Keyboard 0 Movement Arrows Keybinds 0 Fullscreen 1 Font 24/Smallcaps Map View 50x35 Zoom Use 0% Tactical HUD 1 Map Filters NONE Filters NONE Steam 1 RUN: 04316c30-0d46-4731-8aa4-1e8afe39297f